fUSD/lending_fUSD_20260614
["ID","MTS","AMOUNT","RATE_DAILY","PERIOD"]
[424977452,1781366852000,-35.74660286,7.943e-05,2]
[424977447,1781366852000,-250.0,7.942e-05,2]
[424977448,1781366852000,-150.0,7.942e-05,2]
[424977450,1781366852000,-190.46265476,7.943e-05,2]
[424977451,1781366852000,-648.42770524,7.943e-05,2]
[424977449,1781366852000,-500.0,7.943e-05,2]
[424977479,1781367031000,-500.0,7.943e-05,2]
[424977480,1781367031000,-300.0,7.943e-05,2]
[424977482,1781367031000,-2447.86120998,7.945e-05,2]
[424977477,1781367031000,-500.0,7.943e-05,2]
[424977476,1781367031000,-500.0,7.943e-05,2]
[424977481,1781367031000,-2030.83350542,7.945e-05,2]
[424977478,1781367031000,-500.0,7.943e-05,2]
[424977474,1781367031000,-500.0,7.943e-05,2]
[424977471,1781367031000,-500.0,7.943e-05,2]
[424977470,1781367031000,-500.0,7.943e-05,2]
[424977469,1781367031000,-500.0,7.943e-05,2]
[424977468,1781367031000,-370.31337811,7.943e-05,2]
[424977467,1781367031000,-266.31740901,7.943e-05,2]
[424977473,1781367031000,-500.0,7.943e-05,2]
[424977463,1781367031000,-330.63382981,7.943e-05,2]
[424977466,1781367031000,-233.68259099,7.943e-05,2]
[424977465,1781367031000,-423.91172317,7.943e-05,2]
[424977472,1781367031000,-500.0,7.943e-05,2]
[424977464,1781367031000,-169.36617019,7.943e-05,2]
[424977458,1781367031000,-300.0,7.942e-05,2]
[424977462,1781367031000,-302.62580019,7.943e-05,2]
[424977460,1781367031000,-0.68533266,7.943e-05,2]
[424977459,1781367031000,-194.28962189,7.943e-05,2]
[424977483,1781367031000,-3229.10159634,7.945e-05,2]
[424977475,1781367031000,-500.0,7.943e-05,2]
[424977461,1781367031000,-310.55827694,7.943e-05,2]
[424977487,1781367031000,-4027.983076,8.178e-05,2]
[424977509,1781367031000,-7426.39742673,9.04e-05,2]
[424977506,1781367031000,-150.99,8.864e-05,2]
[424977508,1781367031000,-164.66,8.965e-05,2]
[424977504,1781367031000,-233.99702756,8.736e-05,2]
[424977507,1781367031000,-223.68,8.948e-05,2]
[424977500,1781367031000,-500.0,8.219e-05,2]
[424977505,1781367031000,-1675.19087838,8.77e-05,2]
[424977501,1781367031000,-500.0,8.219e-05,2]
[424977503,1781367031000,-847.68,8.537e-05,2]
[424977498,1781367031000,-500.0,8.219e-05,2]
[424977499,1781367031000,-484.37431279,8.219e-05,2]
[424977502,1781367031000,-500.0,8.219e-05,2]
[424977495,1781367031000,-500.0,8.219e-05,2]
[424977489,1781367031000,-500.0,8.219e-05,2]
[424977497,1781367031000,-500.0,8.219e-05,2]
[424977486,1781367031000,-164.0,8.103e-05,2]
[424977485,1781367031000,-150.0,8.024e-05,2]
[424977490,1781367031000,-500.0,8.219e-05,2]
[424977491,1781367031000,-500.0,8.219e-05,2]
[424977488,1781367031000,-500.0,8.219e-05,2]
[424977493,1781367031000,-500.0,8.219e-05,2]
[424977492,1781367031000,-500.0,8.219e-05,2]
[424977496,1781367031000,-500.0,8.219e-05,2]
[424977494,1781367031000,-500.0,8.219e-05,2]
[424977484,1781367031000,-216.029201,7.975e-05,2]
[424977515,1781367033000,-1197.0,9.042e-05,2]
[424977514,1781367033000,-936.53145006,9.042e-05,2]
[424977511,1781367033000,-250.0,9.04e-05,2]
[424977512,1781367033000,-122196.07819316,9.042e-05,2]
[424977513,1781367033000,-452.34929037,9.042e-05,2]
[424977510,1781367033000,-4814.29072367,9.04e-05,2]
[424977521,1781367037000,-509.36734691,8.119e-05,2]
[424977517,1781367037000,-2488.11649926,8.119e-05,2]
[424977518,1781367037000,-5118.8234575,8.119e-05,2]
[424977519,1781367037000,-1263.57193613,8.119e-05,2]
[424977522,1781367037000,-4762.77348522,8.119e-05,2]
[424977523,1781367037000,-15987.651655,8.119e-05,2]
[424977520,1781367037000,-1873.97486054,8.119e-05,2]
[424977531,1781367040000,-2846.53652804,9.042e-05,2]
[424977530,1781367040000,-2691.52589776,9.042e-05,2]
[424977529,1781367040000,-697.22113509,9.042e-05,2]
[424977528,1781367040000,-58724.87307776,9.042e-05,2]
[424977527,1781367040000,-243831.65575944,8.119e-05,2]
[424977548,1781367045000,-2611.76202735,9.042e-05,2]
[424977547,1781367045000,-30071.67654915,9.042e-05,2]
[424977550,1781367046000,-29064.58258133,9.042e-05,2]
[424977549,1781367046000,-1770.121146,9.042e-05,2]
[424977582,1781367047000,-859.95170332,9.042e-05,2]
[424977585,1781367047000,-10509.7781,9.042e-05,2]
[424977583,1781367047000,-607070.85212017,9.042e-05,2]
[424977584,1781367047000,-29436.17477651,9.042e-05,2]
[424977615,1781367053000,-305.17,0.00010533,2]
[424977603,1781367053000,-163.67,0.0001,2]
[424977616,1781367053000,-151.0,0.00010564,2]
[424977605,1781367053000,-305.17,0.00010094,2]
[424977602,1781367053000,-305.17,9.946e-05,2]
[424977593,1781367053000,-2882.15,9.069e-05,2]
[424977601,1781367053000,-305.79,9.946e-05,2]
[424977592,1781367053000,-598862.98542393,9.042e-05,2]
[424977599,1781367053000,-9999.99,9.67e-05,2]
[424977600,1781367053000,-164.83369461,9.763e-05,2]
[424977595,1781367053000,-7856.87,9.313e-05,2]
[424977594,1781367053000,-14643.65,9.142e-05,2]
[424977597,1781367053000,-299.99,9.67e-05,2]
[424977596,1781367053000,-847.68,9.604e-05,2]
[424977604,1781367053000,-305.79,0.00010094,2]
[424977598,1781367053000,-9880.27,9.67e-05,2]
[424977608,1781367053000,-305.79,0.00010303,2]
[424977621,1781367053000,-167.54,0.00010616,2]
[424977606,1781367053000,-305.79,0.00010207,2]
[424977609,1781367053000,-305.17,0.00010303,2]
[424977625,1781367053000,-1000.0,0.000107,3]
[424977626,1781367053000,-1087.34184113,0.00010747,2]
[424977624,1781367053000,-175.8,0.000107,2]
[424977622,1781367053000,-150.0,0.00010656,2]
[424977620,1781367053000,-305.24,0.00010598,2]
[424977623,1781367053000,-847.68,0.00010671,2]
[424977618,1781367053000,-305.79,0.00010598,2]
[424977617,1781367053000,-300.21,0.00010598,2]
[424977612,1781367053000,-305.79,0.00010463,2]
[424977614,1781367053000,-305.79,0.00010533,2]
[424977613,1781367053000,-305.17,0.00010463,2]
[424977611,1781367053000,-305.17,0.00010387,2]
[424977610,1781367053000,-305.79,0.00010387,2]
[424977619,1781367053000,-305.17,0.00010598,2]
[424977607,1781367053000,-305.17,0.00010207,2]
[424977656,1781367054000,-166.66,0.00011397,2]
[424977669,1781367054000,-312.02693767,0.000125,2]
[424977666,1781367054000,-443.3,0.00012329,2]
[424977662,1781367054000,-5117.61131331,0.00011943,2]
[424977663,1781367054000,-3841.8100429,0.00012264,2]
[424977664,1781367054000,-500.0,0.00012299,2]
[424977659,1781367054000,-3841.8100429,0.00011605,2]
[424977660,1781367054000,-3500.91112593,0.00011731,2]
[424977658,1781367054000,-166.66,0.00011507,2]
[424977675,1781367054000,-3500.91112593,0.00012999,2]
[424977661,1781367054000,-847.68,0.00011738,2]
[424977671,1781367054000,-847.68,0.00012805,2]
[424977679,1781367054000,-2000.0,0.00013182,2]
[424977670,1781367054000,-223.68,0.00012528,2]
[424977668,1781367054000,-5117.61131331,0.00012436,2]
[424977672,1781367054000,-719.30261269,0.0001285,2]
[424977676,1781367054000,-5690.07597988,0.00013,2]
[424977674,1781367054000,-5117.61131331,0.00012928,2]
[424977673,1781367054000,-3841.8100429,0.00012923,2]
[424977654,1781367054000,-410.1581184,0.00011371,2]
[424977689,1781367054000,-500.0,0.00013698,2]
[424977678,1781367054000,-5427.16016717,0.0001305,2]
[424977681,1781367054000,-1500.0,0.00013539,2]
[424977680,1781367054000,-5117.61131331,0.00013421,2]
[424977682,1781367054000,-3841.8100429,0.00013582,2]
[424977688,1781367054000,-500.0,0.00013698,2]
[424977677,1781367054000,-307.5643183,0.00013,2]
[424977657,1781367054000,-5117.61131331,0.0001145,2]
[424977646,1781367054000,-3841.8100429,0.00011099,2]
[424977655,1781367054000,-554.9544,0.00011371,2]
[424977683,1781367054000,-3500.91112593,0.00013633,2]
[424977627,1781367054000,-719.30261271,0.000108,2]
[424977628,1781367054000,-2000.0,0.000108,3]
[424977630,1781367054000,-3100.0,0.000109,3]
[424977640,1781367054000,-150.0,0.00010959,2]
[424977629,1781367054000,-3500.91112599,0.000109,2]
[424977641,1781367054000,-181.42,0.00010989,2]
[424977632,1781367054000,-500.0,0.00010958,2]
[424977633,1781367054000,-500.0,0.00010958,2]
[424977631,1781367054000,-500.0,0.00010958,2]
[424977635,1781367054000,-500.0,0.00010958,2]
[424977634,1781367054000,-500.0,0.00010958,2]
[424977636,1781367054000,-500.0,0.00010958,2]
[424977637,1781367054000,-500.0,0.00010958,2]
[424977639,1781367054000,-150.0,0.00010959,2]
[424977638,1781367054000,-166.66,0.00010959,2]
[424977642,1781367054000,-182.55,0.00010989,2]
[424977645,1781367054000,-3841.8100429,0.00011099,2]
[424977649,1781367054000,-5117.61131332,0.00011099,2]
[424977651,1781367054000,-166.66,0.00011178,2]
[424977652,1781367054000,-166.66,0.00011288,2]
[424977644,1781367054000,-3500.91112593,0.00011098,2]
[424977648,1781367054000,-3841.8100429,0.00011099,2]
[424977643,1781367054000,-166.66,0.00011068,2]
[424977650,1781367054000,-5117.61131331,0.00011099,2]
[424977653,1781367054000,-274.18082626,0.00011371,2]
[424977647,1781367054000,-3841.8100429,0.00011099,2]
[424977665,1781367054000,-36155.79630664,0.000123,2]
[424977684,1781367054000,-500.0,0.00013698,2]
[424977667,1781367054000,-3500.91112593,0.00012365,2]
[424977686,1781367054000,-500.0,0.00013698,2]
[424977717,1781367054000,-500.0,0.00013698,2]
[424977718,1781367054000,-500.0,0.00013698,2]
[424977722,1781367054000,-500.0,0.00013698,2]
[424977723,1781367054000,-500.0,0.00013698,2]
[424977721,1781367054000,-500.0,0.00013698,2]
[424977720,1781367054000,-505.05129611,0.00013698,2]
[424977724,1781367054000,-191.13315145,0.00013698,2]
[424977734,1781367054000,-4100.0,0.000144,5]
[424977728,1781367054000,-157.58,0.00014033,2]
[424977733,1781367054000,-1241.0013886,0.000144,2]
[424977735,1781367054000,-5117.61131331,0.00014407,2]
[424977727,1781367054000,-250.0,0.00014,2]
[424977726,1781367054000,-5117.61131331,0.00013914,2]
[424977736,1781367054000,-5200.0,0.000145,5]
[424977737,1781367054000,-1000.0,0.000146,5]
[424977730,1781367054000,-3841.8100429,0.00014241,2]
[424977731,1781367054000,-3500.91112593,0.00014266,2]
[424977732,1781367054000,-10484.87965923,0.0001439,2]
[424977729,1781367054000,-1555.5,0.00014087,2]
[424977740,1781367054000,-350.0,0.000148,2]
[424977743,1781367054000,-5800.0,0.00014883,2]
[424977738,1781367054000,-1613.0535,0.00014635,2]
[424977744,1781367054000,-5800.0,0.00014891,2]
[424977746,1781367054000,-500.0,0.00014899,2]
[424977745,1781367054000,-500.0,0.00014899,2]
[424977739,1781367054000,-1000.0,0.000147,5]
[424977687,1781367054000,-500.0,0.00013698,2]
[424977719,1781367054000,-500.0,0.00013698,2]
[424977725,1781367054000,-200.0,0.00013699,2]
[424977742,1781367054000,-5800.0,0.00014874,2]
[424977716,1781367054000,-626.92,0.00013698,2]
[424977715,1781367054000,-626.92,0.00013698,2]
[424977685,1781367054000,-319.28796867,0.00013698,2]
[424977690,1781367054000,-500.0,0.00013698,2]
[424977692,1781367054000,-500.0,0.00013698,2]
[424977699,1781367054000,-500.0,0.00013698,2]
[424977694,1781367054000,-500.0,0.00013698,2]
[424977693,1781367054000,-500.0,0.00013698,2]
[424977700,1781367054000,-500.0,0.00013698,2]
[424977691,1781367054000,-500.0,0.00013698,2]
[424977695,1781367054000,-500.0,0.00013698,2]
[424977696,1781367054000,-500.0,0.00013698,2]
[424977697,1781367054000,-500.0,0.00013698,2]
[424977741,1781367054000,-1000.0,0.000148,5]
[424977701,1781367054000,-500.0,0.00013698,2]
[424977713,1781367054000,-626.92,0.00013698,2]
[424977698,1781367054000,-500.0,0.00013698,2]
[424977712,1781367054000,-626.92,0.00013698,2]
[424977711,1781367054000,-626.92,0.00013698,2]
[424977710,1781367054000,-626.92,0.00013698,2]
[424977707,1781367054000,-500.0,0.00013698,2]
[424977708,1781367054000,-500.0,0.00013698,2]
[424977709,1781367054000,-626.92,0.00013698,2]
[424977706,1781367054000,-500.0,0.00013698,2]
[424977705,1781367054000,-500.0,0.00013698,2]
[424977702,1781367054000,-500.0,0.00013698,2]
[424977704,1781367054000,-500.0,0.00013698,2]
[424977703,1781367054000,-500.0,0.00013698,2]
[424977714,1781367054000,-626.92,0.00013698,2]
[424977774,1781367055000,-626.92,0.00014999,2]
[424977776,1781367055000,-626.92,0.00014999,2]
[424977775,1781367055000,-626.92,0.00014999,2]
[424977782,1781367055000,-626.92,0.00014999,2]
[424977781,1781367055000,-626.92,0.00014999,2]
[424977784,1781367055000,-626.92,0.00014999,2]
[424977778,1781367055000,-626.92,0.00014999,2]
[424977773,1781367055000,-626.92,0.00014999,2]
[424977772,1781367055000,-565.84,0.00014999,2]
[424977796,1781367055000,-500.0,0.00014999,2]
[424977777,1781367055000,-626.92,0.00014999,2]
[424977779,1781367055000,-626.92,0.00014999,2]
[424977780,1781367055000,-626.92,0.00014999,2]
[424977786,1781367055000,-626.97240013,0.00014999,2]
[424977785,1781367055000,-626.92,0.00014999,2]
[424977787,1781367055000,-2000.0,0.00014999,2]
[424977789,1781367055000,-500.0,0.00014999,2]
[424977766,1781367055000,-500.0,0.00014999,2]
[424977788,1781367055000,-250.0,0.00014999,2]
[424977783,1781367055000,-626.92,0.00014999,2]
[424977768,1781367055000,-500.0,0.00014999,2]
[424977758,1781367055000,-719.30261269,0.000149,2]
[424977767,1781367055000,-500.0,0.00014999,2]
[424977791,1781367055000,-500.0,0.00014999,2]
[424977748,1781367055000,-500.0,0.00014899,2]
[424977749,1781367055000,-626.92,0.00014899,2]
[424977747,1781367055000,-500.0,0.00014899,2]
[424977751,1781367055000,-500.0,0.00014899,2]
[424977752,1781367055000,-500.0,0.00014899,2]
[424977750,1781367055000,-626.92,0.00014899,2]
[424977754,1781367055000,-513504.40442466,0.000149,3]
[424977759,1781367055000,-1000.0,0.000149,5]
[424977753,1781367055000,-1210.475588,0.000149,2]
[424977757,1781367055000,-5117.61131331,0.000149,2]
[424977756,1781367055000,-3500.91112593,0.000149,2]
[424977755,1781367055000,-5800.0,0.000149,2]
[424977761,1781367055000,-3841.8100429,0.000149,2]
[424977771,1781367055000,-500.0,0.00014999,2]
[424977760,1781367055000,-501.7476855,0.000149,2]
[424977762,1781367055000,-4342.4314091,0.000149,2]
[424977763,1781367055000,-947.44007553,0.00014994,2]
[424977770,1781367055000,-500.0,0.00014999,2]
[424977764,1781367055000,-500.0,0.00014998,2]
[424977765,1781367055000,-500.0,0.00014999,2]
[424977769,1781367055000,-150.22,0.00014999,2]
[424977795,1781367055000,-500.0,0.00014999,2]
[424977797,1781367055000,-500.0,0.00014999,2]
[424977794,1781367055000,-500.0,0.00014999,2]
[424977822,1781367055000,-500.0,0.00014999,2]
[424977819,1781367055000,-500.0,0.00014999,2]
[424977823,1781367055000,-500.0,0.00014999,2]
[424977821,1781367055000,-500.0,0.00014999,2]
[424977825,1781367055000,-500.0,0.00014999,2]
[424977824,1781367055000,-500.0,0.00014999,2]
[424977826,1781367055000,-500.0,0.00014999,2]
[424977831,1781367055000,-500.0,0.00014999,2]
[424977832,1781367055000,-500.0,0.00014999,2]
[424977820,1781367055000,-500.0,0.00014999,2]
[424977830,1781367055000,-500.0,0.00014999,2]
[424977829,1781367055000,-500.0,0.00014999,2]
[424977834,1781367055000,-500.0,0.00014999,2]
[424977833,1781367055000,-500.0,0.00014999,2]
[424977835,1781367055000,-500.0,0.00014999,2]
[424977836,1781367055000,-500.0,0.00014999,2]
[424977839,1781367055000,-500.0,0.00014999,2]
[424977838,1781367055000,-500.0,0.00014999,2]
[424977837,1781367055000,-500.0,0.00014999,2]
[424977792,1781367055000,-500.0,0.00014999,2]
[424977828,1781367055000,-500.0,0.00014999,2]
[424977817,1781367055000,-500.0,0.00014999,2]
[424977827,1781367055000,-500.0,0.00014999,2]
[424977815,1781367055000,-500.0,0.00014999,2]
[424977790,1781367055000,-500.0,0.00014999,2]
[424977818,1781367055000,-500.0,0.00014999,2]
[424977793,1781367055000,-500.0,0.00014999,2]
[424977799,1781367055000,-500.0,0.00014999,2]
[424977803,1781367055000,-500.0,0.00014999,2]
[424977804,1781367055000,-500.0,0.00014999,2]
[424977801,1781367055000,-500.0,0.00014999,2]
[424977802,1781367055000,-500.0,0.00014999,2]
[424977807,1781367055000,-500.0,0.00014999,2]
[424977805,1781367055000,-500.0,0.00014999,2]
[424977806,1781367055000,-500.0,0.00014999,2]
[424977798,1781367055000,-500.0,0.00014999,2]
[424977808,1781367055000,-500.0,0.00014999,2]
[424977810,1781367055000,-500.0,0.00014999,2]
[424977809,1781367055000,-500.0,0.00014999,2]
[424977811,1781367055000,-500.0,0.00014999,2]
[424977812,1781367055000,-500.0,0.00014999,2]
[424977813,1781367055000,-500.0,0.00014999,2]
[424977800,1781367055000,-500.0,0.00014999,2]
[424977814,1781367055000,-500.0,0.00014999,2]
[424977816,1781367055000,-500.0,0.00014999,2]
[424977866,1781367056000,-687.07472415,0.00014999,2]
[424977873,1781367056000,-151.0,0.00015,2]
[424977872,1781367056000,-151.0,0.00015,2]
[424977870,1781367056000,-1575418.11569216,0.00015,2]
[424977867,1781367056000,-300.0,0.00014999,2]
[424977871,1781367056000,-6340715.52358502,0.00015,2]
[424977868,1781367056000,-16111682.12069868,0.00015,2]
[424977875,1781367056000,-151.0,0.00015,2]
[424977869,1781367056000,-921.73,0.00015,2]
[424977874,1781367056000,-351.9695452,0.00015,2]
[424977885,1781367056000,-173.310699,0.00015,2]
[424977877,1781367056000,-151.0,0.00015,2]
[424977879,1781367056000,-434.647264,0.00015,2]
[424977883,1781367056000,-173.310699,0.00015,2]
[424977880,1781367056000,-151.0,0.00015,2]
[424977884,1781367056000,-173.310699,0.00015,2]
[424977882,1781367056000,-173.310699,0.00015,2]
[424977878,1781367056000,-151.0,0.00015,2]
[424977881,1781367056000,-151.0,0.00015,2]
[424977888,1781367056000,-173.310699,0.00015,2]
[424977865,1781367056000,-300.0,0.00014999,2]
[424977876,1781367056000,-151.0,0.00015,2]
[424977864,1781367056000,-300.0,0.00014999,2]
[424977841,1781367056000,-500.0,0.00014999,2]
[424977860,1781367056000,-300.0,0.00014999,2]
[424977887,1781367056000,-173.310699,0.00015,2]
[424977840,1781367056000,-500.0,0.00014999,2]
[424977842,1781367056000,-500.0,0.00014999,2]
[424977844,1781367056000,-500.0,0.00014999,2]
[424977845,1781367056000,-500.0,0.00014999,2]
[424977846,1781367056000,-500.0,0.00014999,2]
[424977843,1781367056000,-500.0,0.00014999,2]
[424977849,1781367056000,-500.0,0.00014999,2]
[424977847,1781367056000,-500.0,0.00014999,2]
[424977851,1781367056000,-500.0,0.00014999,2]
[424977858,1781367056000,-500.0,0.00014999,2]
[424977848,1781367056000,-500.0,0.00014999,2]
[424977852,1781367056000,-500.0,0.00014999,2]
[424977853,1781367056000,-500.0,0.00014999,2]
[424977863,1781367056000,-666.0,0.00014999,2]
[424977855,1781367056000,-500.0,0.00014999,2]
[424977857,1781367056000,-500.0,0.00014999,2]
[424977859,1781367056000,-360.23499725,0.00014999,2]
[424977862,1781367056000,-300.0,0.00014999,2]
[424977861,1781367056000,-300.0,0.00014999,2]
[424977854,1781367056000,-500.0,0.00014999,2]
[424977856,1781367056000,-500.0,0.00014999,2]
[424977850,1781367056000,-500.0,0.00014999,2]
[424977889,1781367056000,-173.310699,0.00015,2]
[424977921,1781367056000,-1734.62772924,0.00015731,2]
[424977892,1781367056000,-151.0,0.00015,2]
[424977916,1781367056000,-595.046452,0.00015068,2]
[424977919,1781367056000,-527.41,0.000152,2]
[424977922,1781367056000,-2276.79255674,0.00015807,2]
[424977920,1781367056000,-1517.64,0.000153,2]
[424977923,1781367056000,-180.0,0.00015885,2]
[424977924,1781367056000,-300.0,0.00016,2]
[424977918,1781367056000,-1672.7364795,0.00015183,2]
[424977939,1781367056000,-2020.9,0.00016438,2]
[424977925,1781367056000,-160.0,0.00016,8]
[424977927,1781367056000,-6000.0,0.00016,2]
[424977915,1781367056000,-595.046452,0.00015068,2]
[424977930,1781367056000,-4882.76,0.00016116,2]
[424977928,1781367056000,-530.83790158,0.00016,2]
[424977926,1781367056000,-779.71473974,0.00016,2]
[424977929,1781367056000,-530.83790158,0.000161,2]
[424977932,1781367056000,-200.0,0.0001634,2]
[424977934,1781367056000,-300.0,0.00016437,2]
[424977933,1781367056000,-500.0,0.00016437,2]
[424977936,1781367056000,-300.0,0.00016437,2]
[424977937,1781367056000,-300.0,0.00016437,2]
[424977938,1781367056000,-300.0,0.00016437,2]
[424977890,1781367056000,-286.819809,0.00015,2]
[424977931,1781367056000,-1798.80895522,0.00016279,2]
[424977917,1781367056000,-595.046452,0.00015068,2]
[424977935,1781367056000,-666.0,0.00016437,2]
[424977909,1781367056000,-1720.497988,0.00015,2]
[424977912,1781367056000,-595.046452,0.00015068,2]
[424977886,1781367056000,-173.310699,0.00015,2]
[424977893,1781367056000,-151.0,0.00015,2]
[424977891,1781367056000,-151.0,0.00015,2]
[424977895,1781367056000,-151.0,0.00015,2]
[424977896,1781367056000,-151.0,0.00015,2]
[424977897,1781367056000,-151.0,0.00015,2]
[424977898,1781367056000,-151.0,0.00015,2]
[424977899,1781367056000,-151.0,0.00015,2]
[424977900,1781367056000,-151.0,0.00015,2]
[424977901,1781367056000,-151.283773,0.00015,2]
[424977894,1781367056000,-151.0,0.00015,2]
[424977902,1781367056000,-1720.497988,0.00015,2]
[424977903,1781367056000,-1720.497988,0.00015,2]
[424977913,1781367056000,-595.046452,0.00015068,2]
[424977911,1781367056000,-595.046452,0.00015068,2]
[424977907,1781367056000,-1720.497988,0.00015,2]
[424977914,1781367056000,-595.046452,0.00015068,2]
[424977908,1781367056000,-1720.497988,0.00015,2]
[424977906,1781367056000,-1720.497988,0.00015,2]
[424977905,1781367056000,-1720.497988,0.00015,2]
[424977904,1781367056000,-1720.497988,0.00015,2]
[424977910,1781367056000,-595.046452,0.00015068,2]
[424977965,1781367057000,-151.0,0.00016438,2]
[424977972,1781367057000,-443.3,0.00016767,2]
[424977962,1781367057000,-151.0,0.00016438,2]
[424977967,1781367057000,-151.0,0.00016438,2]
[424977966,1781367057000,-151.0,0.00016438,2]
[424977968,1781367057000,-151.0,0.00016438,2]
[424977969,1781367057000,-151.0,0.00016438,2]
[424977970,1781367057000,-1000.0,0.000165,2]
[424977964,1781367057000,-151.0,0.00016438,2]
[424977978,1781367057000,-8255.724264,0.000175,2]
[424977973,1781367057000,-1865.36488656,0.00016827,2]
[424977977,1781367057000,-1934.38338736,0.00017375,2]
[424977974,1781367057000,-1165.75573525,0.00017,2]
[424977979,1781367057000,-10055.58894355,0.000175,2]
[424977975,1781367057000,-8255.724264,0.000173,2]
[424977976,1781367057000,-10055.58894355,0.000173,2]
[424977981,1781367057000,-10055.58894355,0.000177,2]
[424977963,1781367057000,-151.0,0.00016438,2]
[424977980,1781367057000,-8255.724264,0.000177,2]
[424977971,1781367057000,-168.44,0.00016712,2]
[424977959,1781367057000,-151.0,0.00016438,2]
[424977953,1781367057000,-1048.560609,0.00016438,2]
[424977960,1781367057000,-151.0,0.00016438,2]
[424977983,1781367057000,-794.74529477,0.000177,2]
[424977940,1781367057000,-156.46774977,0.00016438,7]
[424977943,1781367057000,-3793.229884,0.00016438,2]
[424977941,1781367057000,-3793.229884,0.00016438,2]
[424977942,1781367057000,-3793.229884,0.00016438,2]
[424977944,1781367057000,-3793.229884,0.00016438,2]
[424977946,1781367057000,-3793.229884,0.00016438,2]
[424977947,1781367057000,-3793.229884,0.00016438,2]
[424977952,1781367057000,-1048.560609,0.00016438,2]
[424977950,1781367057000,-1048.560609,0.00016438,2]
[424977945,1781367057000,-3793.229884,0.00016438,2]
[424977948,1781367057000,-3793.229884,0.00016438,2]
[424977949,1781367057000,-1048.560609,0.00016438,2]
[424977951,1781367057000,-1048.560609,0.00016438,2]
[424977954,1781367057000,-1048.560609,0.00016438,2]
[424977956,1781367057000,-1048.560609,0.00016438,2]
[424977955,1781367057000,-1048.560609,0.00016438,2]
[424977958,1781367057000,-261.737255,0.00016438,2]
[424977961,1781367057000,-151.0,0.00016438,2]
[424977957,1781367057000,-151.0,0.00016438,2]
[424977982,1781367057000,-921.73,0.000177,2]
[424977984,1781367057000,-1242.01985405,0.0001789,2]
[424977988,1781367057000,-300.0,0.00017999,2]
[424978008,1781367057000,-500.0,0.00018355,2]
[424978011,1781367057000,-10055.58894355,0.000184,2]
[424978015,1781367057000,-151.0,0.00018471,2]
[424978013,1781367057000,-2020.9,0.0001841,2]
[424978012,1781367057000,-546.7324081,0.000184,2]
[424978014,1781367057000,-200.0,0.00018471,2]
[424978016,1781367057000,-151.0,0.00018471,2]
[424978019,1781367057000,-151.0,0.00018471,2]
[424978017,1781367057000,-151.0,0.00018471,2]
[424978009,1781367057000,-166.05435716,0.000184,2]
[424978024,1781367057000,-500.0,0.00018471,2]
[424978022,1781367057000,-151.0,0.00018471,2]
[424978021,1781367057000,-151.0,0.00018471,2]
[424978023,1781367057000,-151.0,0.00018471,2]
[424978025,1781367057000,-151.0,0.00018471,2]
[424978026,1781367057000,-500.0,0.00018471,2]
[424978027,1781367057000,-2080.17592889,0.00018471,2]
[424978028,1781367057000,-151.0,0.00018471,2]
[424977986,1781367057000,-10055.58894355,0.000179,2]
[424978029,1781367057000,-151.0,0.00018471,2]
[424978018,1781367057000,-151.0,0.00018471,2]
[424978010,1781367057000,-8255.724264,0.000184,2]